Cogmind - Beta 15 @@@ ROGUE MODE // 2025.05.25 @ 19:22:33 Player: Switzy Result: Destroyed by as-57134 with Assembled F-torch Performance ------------- Evolutions (1) 500 Regions Visited (3) 600 Robots Destroyed (22) 110 Value Destroyed (717) 717 Prototype IDs (0) 0 Alien Tech Used (0) 0 Bonus (0) 0 TOTAL SCORE: 1927 Bonus ------- None Cogmind --------- Core Integrity 0/400 Matter 272/300 Energy 96/100 System Corruption 2% Temperature Cool (22) Movement Walking (180) Ox1 Location -9/Mines Parts ------- > --- POWER (1) -------- (None) > --- PROPULSION (2) --- VSS Leg > --- UTILITY (4) ------ Medium Storage Unit Structural Scanner Improved Targeting Computer > --- WEAPON (2) ------- Beam Rifle Heavy Assault Rifle > --- INVENTORY (10) --- Deuterium Engine Medium Battery (150) Light Armor Plating Particle Gun Minigun Minigun Hammer Heavy Hammer Peak State ------------ > --- POWER ------------ Deuterium Engine > --- PROPULSION ------- VSS Leg VSS Leg > --- UTILITY ---------- Medium Storage Unit Structural Scanner Improved Targeting Computer Improved Targeting Computer > --- WEAPON ----------- Particle Gun Minigun > --- INVENTORY -------- Deuterium Engine Medium Battery Light Armor Plating Beam Rifle Particle Gun Heavy Assault Rifle Hammer Heavy Hammer [Rating: 21] Favorites ----------- Power Deuterium Engine Engine Deuterium Engine Power Core Light Nuclear Core Propulsion Aluminum Leg Leg Aluminum Leg Utility Medium Storage Unit Device Structural Scanner Storage Medium Storage Unit Processor Improved Targeting Computer Protection Medium Armor Plating Weapon Assault Rifle Energy Gun Particle Gun Ballistic Gun Assault Rifle Impact Weapon Heavy Hammer Special Melee Weapon Datajack Build | -11 -10 -9 -9 ------- Run | Yrd Mat Mat Min Slots Evolved 2 | . . 2 . Power . | . . . . Propulsion . | . . . . Utility 2 | . . 2 . Weapon . | . . . . Parts Attached 29 | 6 8 15 . Power 4 | 2 1 1 . Engine 3 | 2 . 1 . Core 1 | . 1 . . Reactor . | . . . . Propulsion 7 | 2 3 2 . Treads . | . . . . Leg 7 | 2 3 2 . Wheel . | . . . . Hover . | . . . . Flight . | . . . . Utility 8 | . 2 6 . Device 2 | . . 2 . Storage 2 | . 2 . . Processor 2 | . . 2 . Hackware . | . . . . Protection 2 | . . 2 . Artifact . | . . . . Weapon 10 | 2 2 6 . Energy Gun 4 | 1 . 3 . Energy Cannon . | . . . . Ballistic Gun 4 | 1 1 2 . Ballistic Cannon . | . . . . Launcher . | . . . . Special Weapon . | . . . . Impact Weapon 1 | . . 1 . Slashing Weapon . | . . . . Piercing Weapon . | . . . . Special Melee Weapon 1 | . 1 . . Unidentified Prototypes . | . . . . Parts Lost 10 | . 2 5 3 Power 3 | . . 2 1 Propulsion 2 | . . 1 1 Utility 2 | . . 1 1 Weapon 3 | . 2 1 . Highest Loss Streak 4 | . 1 4 3 To Critical Strikes . | . . . . Average Backups 5 | 2 4 6 8 Power . | . 1 . 1 Propulsion . | . . . . Utility 1 | . 1 1 2 Weapon 2 | . 1 3 5 Tool/Special . | . . . . Unused Backups 4 | . . . 4 Power 1 | . . . 1 Propulsion . | . . . . Utility 1 | . . . 1 Weapon 2 | . . . 2 Tool/Special . | . . . . Average Slot Usage (%) 94 | . 93 95 92 Engine 8 | . 7 9 11 Core 2 | . 5 . . Leg 22 | . 26 20 18 Device 8 | . . 13 11 Storage 18 | . 26 13 11 Processor 7 | . . 11 11 Protection 2 | . . 3 7 Energy Gun 7 | . 6 7 11 Ballistic Gun 14 | . 17 12 11 Impact Weapon 1 | . . 2 . Peak Build Rating 21 | 5 9 21 20 Average Rating 12 | 2 7 15 18 On Entrance 8 | . 5 7 20 Naked Turns . | . . . . Heaviest Build 33 | 9 21 33 33 Greatest Support 24 | 20 20 24 24 Greatest Overweight (x) 3 | . 3 1 2 Average Overweight (x) . | . . . 1 Largest Inventory Capacity 10 | 5 10 10 10 Average Capacity 9 | 5 9 10 10 Most Carried 10 | 5 9 10 8 Average Carried 5 | 2 4 6 8 Final Capacity 10 | 5 10 10 10 Final Carried 8 | 2 5 8 8 Class Distribution -------------------- 100% | Mutant Dominant Class ---------------- Mutant | -10/Materials Mutant | -9/Materials Mutant | -9/Mines Resources | -11 -10 -9 -9 ----------- Run | Yrd Mat Mat Min Matter Collected 752 | 190 228 334 . Remotely 158 | . . 158 . Salvage Created 832 | . 337 495 . Parts 52 | . 26 26 . Haulers Intercepted . | . . . . Recyclers Shooed 1 | . . 1 . Parts Field Recycled . | . . . . Retrieved Matter . | . . . . Parts Self-Destructed . | . . . . Prevented . | . . . . Kills | -11 -10 -9 -9 ------- Run | Yrd Mat Mat Min Combat Hostiles Destroyed 22 | . 10 12 . Guns 20 | . 8 12 . AOE 2 | . 2 . . Classes Destroyed 3 | . 2 1 . Swarmer 5 | . 3 2 . Grunt 11 | . 7 4 . Sentry 6 | . . 6 . Best Kill Streak 3 | . 3 3 . Combat Bots Only 3 | . 3 3 . Max Kills in Single Turn 2 | . 2 1 . Gunslinging . | . . . . Exploded 2 | . 2 . . Melee . | . . . . Uniques/NPCs Destroyed . | . . . . Combat | -11 -10 -9 -9 -------- Run | Yrd Mat Mat Min Hostile Shots Fired 194 | . 49 133 12 Missed 57 | . 14 42 1 Hits 137 | . 35 91 11 Projectile 137 | . 35 91 11 AOE 10 | . . . 10 Critical Strikes 1 | . . 1 . Part Disruptions 1 | . . . 1 Damage Taken 1991 | . 429 1134 428 Core 519 | . 114 345 60 Absorbed by Shields . | . . . . Core Remaining (%) 77 | 100 54 . . Volleys Fired 88 | 1 29 56 2 Largest 2 | 2 2 2 2 Hottest 130 | 60 60 130 79 Shots Fired 141 | 2 45 90 4 Gun 141 | 2 45 90 4 Cannon . | . . . . Launcher . | . . . . Special . | . . . . Kinetic 96 | 1 33 60 2 Thermal 32 | . . 30 2 Explosive . | . . . . Electromagnetic 13 | 1 12 . . Robot Hit Streak 9 | . 4 9 2 Robot Miss Streak 3 | . 2 3 2 Penetration Max . | . . . . Secondary Targets 3 | . 1 2 . Max Gunslinging Chain 1 | . 1 1 . Shots Hit Robots 93 | . 29 62 2 Core Hits 40 | . 18 21 1 Critical Kills . | . . . . Critical Parts Destroyed . | . . . . Critical Strikes 4 | . 1 3 . Burn 3 | . . 3 . Corrupt 1 | . 1 . . Melee Attacks 4 | . 1 3 . Impact 3 | . . 3 . Slashing . | . . . . Piercing . | . . . . Sneak Attacks . | . . . . Combat Hostiles . | . . . . Follow-up Attacks . | . . . . Damage Inflicted 1266 | . 415 825 26 Guns 1202 | . 358 818 26 Cannons . | . . . . Explosions 57 | . 57 . . Melee . | . . . . Ramming 7 | . . 7 . Kinetic 690 | . 210 468 12 Thermal 421 | . 57 350 14 Explosive . | . . . . Electromagnetic 148 | . 148 . . Impact . | . . . . Slashing . | . . . . Piercing . | . . . . Highest Corruption 2 | . . 2 2 Average Corruption 2 | . . 2 2 Corruption Purged . | . . . . Corruption Blocked . | . . . . Effects 2 | . . 2 . Message Errors 1 | . . 1 . Data Loss (minor) 1 | . . 1 . Overload Shots . | . . . . Overflow Damage . | . . . . Projectiles . | . . . . Explosions . | . . . . Melee . | . . . . Knockbacks . | . . . . Impact . | . . . . Kinetic . | . . . . Secondary . | . . . . Self-Inflicted Damage 38 | . 38 . . Shots 1 | . 1 . . Rammed . | . . . . Targets Rammed 2 | . . 2 . Kicked 2 | . . 2 . Crushed . | . . . . Highest Temperature 199 | . 24 199 42 Average Temperature 43 | . 9 52 21 Received Heat Transfer 550 | . 171 339 40 Siege Activations . | . . . . Martial Activations . | . . . . Shielding Activations . | . . . . Robots Disrupted . | . . . . Combat Hostiles . | . . . . Robots Corrupted . | . . . . Combat Hostiles . | . . . . Parts Fried . | . . . . Impact Corruptions . | . . . . Robots Melted . | . . . . Combat Hostiles . | . . . . Parts Melted 1 | . . 1 . Heat Transferred 1223 | . 150 1036 37 Parts Sabotaged . | . . . . Parts Stolen . | . . . . Parts Stripped . | . . . . Power Chain Reactions 1 | . 1 . . Alert | -11 -10 -9 -9 ------- Run | Yrd Mat Mat Min Maximum Alert Level . | . . . . Low Security (%) 100 | 100 100 100 100 Level 1 . | . . . . Level 2 . | . . . . Level 3 . | . . . . Level 4 . | . . . . Level 5 . | . . . . High Security . | . . . . Max Security . | . . . . Peak Influence 128 | . 128 116 4 Initial 33 | . . 33 4 Average 51 | . 61 50 2 Influence Increases 641 | . 273 368 . Destroy 0b10 Robot/C 440 | . 200 240 . Destroy Leader 130 | . 40 90 . Successful Hack 4 | . . 4 . Disable Machine 15 | . . 15 . Destroy Structure 7 | . 3 4 . Partial Spotted 30 | . 30 . . Lose Combat Pursuer 15 | . . 15 . Influence Decreases 641 | . 193 435 13 Entered New Map 56 | . . 47 9 Time Decay 531 | . 183 348 . Lost Part 54 | . 10 40 4 Squads Dispatched 7 | . 3 4 . Investigation . | . . . . Extermination . | . . . . Reinforcement 7 | . 3 4 . Assault . | . . . . Garrison . | . . . . Intercept . | . . . . Searches Triggered . | . . . . Construction Impeded . | . . . . Haulers Reinforced . | . . . . Active Scanning Responses . | . . . . Cargo Convoy Interrupts . | . . . . Stealth | -11 -10 -9 -9 --------- Run | Yrd Mat Mat Min Distress Signals 5 | . 2 3 . Communications Jammed . | . . . . Distress Signals . | . . . . Times Spotted 44 | . 17 23 4 Peak Tracking Total 7 | . 6 7 4 Tactical Retreats 1 | . . 1 . Traps | -11 -10 -9 -9 ------- Run | Yrd Mat Mat Min Traps Triggered 5 | . 4 1 . Indirectly . | . . . . Trap Hack Attempts . | . . . . Triggered . | . . . . Disarmed . | . . . . Reprogrammed 5 | . . 5 . Reused . | . . . . Traps Extracted . | . . . . Installed . | . . . . Triggered . | . . . . Machines | -11 -10 -9 -9 ---------- Run | Yrd Mat Mat Min Machines Disabled 1 | . . 1 . Max in Single Turn 1 | . . 1 . Machines Repaired . | . . . . Machines Dismantled . | . . . . Machines Sabotaged . | . . . . Overloaded Fab Kills . | . . . . Hacking | -11 -10 -9 -9 --------- Run | Yrd Mat Mat Min Machines Accessed 6 | . 3 3 . Terminals 4 | . 2 2 . Fabricators . | . . . . Repair Stations 1 | . 1 . . Recycling Units 1 | . . 1 . Scanalyzers . | . . . . Garrison Access . | . . . . Total Hacks 16 | . 7 9 . Successful 8 | . 3 5 . Failed 8 | . 4 4 . Catastrophic . | . . . . Database Lockouts . | . . . . Manual . | . . . . Terminals 10 | . 5 5 . Fabricators . | . . . . Repair Stations 2 | . 2 . . Recycling Units 4 | . . 4 . Scanalyzers . | . . . . Garrison Access . | . . . . Terminal Hacks 5 | . 2 3 . Record 2 | . 2 . . Locate Traps 1 | . . 1 . Reprogram Traps 1 | . . 1 . Zone Layout 1 | . . 1 . Fabricator Hacks . | . . . . Repair Station Hacks 1 | . 1 . . Scan Component 1 | . 1 . . Recycling Unit Hacks 2 | . . 2 . Process 1 | . . 1 . Report Inventory 1 | . . 1 . Scanalyzer . | . . . . Garrison Access Hacks . | . . . . Unauthorized Hacks . | . . . . Terminals . | . . . . Fabricators . | . . . . Repair Stations . | . . . . Recycling Units . | . . . . Scanalyzers . | . . . . Garrison Access . | . . . . Data Cores Recovered . | . . . . Used . | . . . . Hacking Detections 4 | . 2 2 . Full Trace Events . | . . . . Feedback Events . | . . . . Feedback Blocked . | . . . . Robot Schematics Acquired . | . . . . Robots Built . | . . . . Authchips . | . . . . Time . | . . . . Total Robot Build Rating . | . . . . Part Schematics Acquired . | . . . . Parts Built . | . . . . Authchips . | . . . . Time . | . . . . Total Part Build Rating . | . . . . Parts Repaired . | . . . . Time . | . . . . Parts Recycled . | . . . . Recycled Matter 217 | . . 217 . Retrieved Matter . | . . . . Retrieved Components . | . . . . Parts Scanalyzed . | . . . . Part Schematics Acquired . | . . . . Parts Damaged . | . . . . Bothacking | -11 -10 -9 -9 ------------ Run | Yrd Mat Mat Min Used RIF Installer . | . . . . Robots Hacked 1 | . 1 . . Non-combat . | . . . . Combat 1 | . 1 . . Robot Hacks Applied 1 | . 1 . . parse_system 1 | . 1 . . Relay Couplers Released . | . . . . Fabnet Peak Effective % . | . . . . Robots Rewired . | . . . . Allies Hacked . | . . . . Hacks Repelled . | . . . . Allies | -11 -10 -9 -9 -------- Run | Yrd Mat Mat Min Total Allies . | . . . . Largest Group . | . . . . Highest-Rated Group . | . . . . Highest-Rated Ally . | . . . . Total Orders . | . . . . Ally Attacks . | . . . . Total Damage . | . . . . Kills . | . . . . Allies Corrupted . | . . . . Allies Melted . | . . . . Intel | -11 -10 -9 -9 ------- Run | Yrd Mat Mat Min Active Infowar (turns) 904 | . . 876 28 Structural 904 | . . 876 28 Robot Analysis Total . | . . . . Derelict Logs Recovered . | . . . . Drone Launches . | . . . . Drone Recoveries . | . . . . Exploration | -11 -10 -9 -9 ------------- Run | Yrd Mat Mat Min Turns Passed 1467 | 46 517 876 28 Spaces Moved 684 | 44 246 382 12 Core 39 | 31 8 . . Treads . | . . . . Legs 645 | 13 238 382 12 Wheels . | . . . . Hover . | . . . . Flight . | . . . . Fastest Speed 50 | 50 120 90 180 Average Speed 151 | 70 146 162 195 Slowest Speed 270 | 120 200 190 270 Overloaded Moves . | . . . . Propulsion Burnouts . | . . . . Robots Hopped . | . . . . Potential Cave-ins . | . . . . Cave-ins Triggered . | . . . . Exploration Rate (%) 22 | 3 43 37 5 Regions Visited 3 Branch Regions 1 Pre-discovered Areas . | . . . . Known Exits Taken . | . . . . Unknown Exits Taken 3 | 1 1 1 . Scrap Searched . | . . . . Spaces Dug 2 | . . 2 . Terrain Destroyed 4 | . 2 2 . Melee 2 | . . 2 . Projectile . | . . . . AOE 2 | . 2 . . Terrain Rammed . | . . . . Walls Destroyed . | . . . . Machines Disabled . | . . . . Actions | -11 -10 -9 -9 --------- Run | Yrd Mat Mat Min Total 980 | 55 359 552 14 Wait 119 | . 53 66 . Move 681 | 43 245 381 12 Hop . | . . . . Pick Up 35 | 5 15 15 . Fast Attach 2 | 2 . . . Attach 29 | 3 11 15 . Detach 4 | . . 4 . Swap 8 | 1 2 5 . Drop 8 | . 3 5 . Fire 88 | 1 29 56 2 Melee 4 | . 1 3 . Ram . | . . . . Kick 2 | . . 2 . Crush . | . . . . Escape Stasis . | . . . . Rewire . | . . . . Trap . | . . . . Miscellaneous . | . . . . Route ------- -11/Scrapyard -10/Materials -9/Materials -9/Mines History --------- Turn | Location | Event 5 | -11/Scrapyard | Discovered new exit (range 16) 47 | -11/Scrapyard | Entered Materials 308 | -10/Materials | Build established: Mutant 455 | -10/Materials | Discovered new exit (range 15) 564 | -10/Materials | Entered another Materials area 564 | -9/Materials | Evolved 2 slots: Utility x2 913 | -9/Materials | Core integrity fell below 50% 941 | -9/Materials | Lost 4 parts (2p1n1w) 1144 | -9/Materials | Core integrity fell below 20% 1373 | -9/Materials | Discovered new exit (range 12) 1440 | -9/Materials | Entered Mines 1441 | -9/Mines | Assembled infested the area 1468 | -9/Mines | Destroyed by as-57134 with Assembled F-torch Last Messages --------------- 01388_ ALERT: Hostiles spotted, dispatching reinforcements to Terminal M001. 01392_ ALERT: Hostiles spotted, dispatching reinforcements to Terminal M007. 01394_ K-01 Serf cleans the Recycling Unit. 01409_ Connecting with Recycling Unit... 01428_ Destroyed Hover Unit. LOCATION=UNKNOWN GOAL=ESCAPE Something is scanning the area. 01441_ ALERT: Infestation in the mines, dispatching Demolisher response squad. 01450_ C-30 ARC bursts open, deploying its payload. 01450_ D-53 Grenadier unfolds itself. 01451_ The unstable cave ceiling collapses. 01459_ VSS Leg destroyed. 01459_ Med. Armor Plating destroyed. 01466_ Deuterium Engine destroyed. 01468_ The unstable cave ceiling collapses. Map ----- +----------------------------------------------------+ | ?????????????????????????????????????????????????? | | ?????????????????????????????????????????????????? | | ?????????????????????????????????????????????????? | | ?????????????????????????????????????????????????? | | ?????????????????????????????????????????????????? | | ?????????????????????????????????????????????????? | | ?????????????????????????????????????????????????? | | ?????????????????????????????????????????????????? | | ?????????????????????????????????????????????????? | | ?????????????????????????????????????????????????? | | ?????????????????????????????????????????????????? | | ?????????????????????????????????????????????????? | | ?????????????????????????????????????????????????? | | ?????????????????????????????????????????????????? | | ????????????????#########????????????????????????? | | ???????????????###########???????????????????????? | | ????????? ????#### # ####??????????????????????? | | ??????" ?#### ####?????????????????????? | | ???? ## # ### ????????????????????? | | ????## "% d ## ???????????????????? | | ????###??? ##### ###???????????????????? | | ??????????###### ##???????????????????? | | ??????????????## ##???????????????????? | | ??????????????### ######? ##????????????? | | ??????????????#### ##### ##????????????? | | ???????????????#### @ aa ###????????????? | | ????????????????### ##### ##????????????? | | ?????????????????### ## ##### ? ????????????? | | ?????????????????######### ##????????????????????? | | ??????????????????######## ##????????????????????? | | ?????????????????????????? ????????????????????? | | ??????????????????????????###????????????????????? | | ??????????????????????????###????????????????????? | | ?????????????????????????????????????????????????? | | ?????????????????????????????????????????????????? | | ?????????????????????????????????????????????????? | | ?????????????????????????????????????????????????? | | ?????????????????????????????????????????????????? | | ?????????????????????????????????????????????????? | | ?????????????????????????????????????????????????? | | ?????????????????????????????????????????????????? | | ?????????????????????????????????????????????????? | | ?????????????????????????????????????????????????? | | ?????????????????????????????????????????????????? | | ?????????????????????????????????????????????????? | | ?????????????????????????????????????????????????? | | ?????????????????????????????????????????????????? | | ?????????????????????????????????????????????????? | | ?????????????????????????????????????????????????? | | ?????????????????????????????????????????????????? | +----------------------------------------------------+ Best States ------------- Heat Dissipation 28 Energy Generation 14 Energy Capacity 400 Matter Stores 300 Matter Capacity 300 Sight Range 16 Terrain Scan Density 10 Armor Coverage 225 Evasion (%) 55 Targeting Accuracy 12 Item Schematics ----------------- None Robot Schematics ------------------ None Fabricated ------------ Nothing Repaired ---------- Nothing Alien Tech Used ----------------- None Achievements -------------- None Challenges ------------ None Game ------ Seed WeightEtherialKinecellerator Manual? 0 Play Time 00:22:53 Cumulative 7.0 hours Start 2025.05.23 @ 18:24:17 End 2025.05.25 @ 19:22:33 Sessions 3 Manual Loads 0 Difficulty Rogue Special Mode None Game No. 13 Rogue 11 Adventurer 2 Explorer 0 Win Type - Total 0 Types 0/0/0/0/0/0/0/0/0/0 Lore% 2 Gallery% 12 Achievement% 11 Wizard Run 0 Options --------- Layout 2 ASCII 0 Keyboard 0 Movement Mouse Keybinds 0 Fullscreen 1 Font 48/Smallcaps Map View 50x44 Zoom Use 0% Tactical HUD 1 Map Filters NONE Filters NONE Steam 1 RUN: 0560ecb5-6950-401c-9542-31ba4e6680bf